Cogmind - Beta 15 @@@ ROGUE MODE // 2025.06.23 @ 17:13:24 Player: saltine Result: Destroyed by 8R-AWN with 8R-AWN's Boregun Performance ------------- Evolutions (0) 0 Regions Visited (3) 600 Robots Destroyed (14) 70 Value Destroyed (316) 316 Prototype IDs (23) 460 Alien Tech Used (0) 0 Bonus (243) 243 TOTAL SCORE: 1689 Bonus ------- Aligned with FarCom 300 Friendly Fire -57 Cogmind --------- Core Integrity 0/250 Matter 290/300 Energy 28/100 System Corruption 0% Temperature Cool (0) Movement Core (50) Location -10/Exiles Parts ------- > --- POWER (1) -------- (None) > --- PROPULSION (2) --- (None) > --- UTILITY (2) ------ (None) > --- WEAPON (2) ------- (None) > --- INVENTORY (5) ---- Aluminum Leg Aluminum Leg Wheel Compact Wheel Large Matter Pod (94) Peak State ------------ > --- POWER ------------ Ion Engine > --- PROPULSION ------- Aluminum Leg Aluminum Leg > --- UTILITY ---------- Small Storage Unit High-capacity Storage Unit > --- WEAPON ----------- YOLO Cannon > --- INVENTORY -------- Ion Engine Light Treads Light Treads Wheel Compact Wheel Large Matter Pod [Rating: 25] Favorites ----------- Power Ion Engine Engine Ion Engine Propulsion Aluminum Leg Treads Light Treads Leg Aluminum Leg Utility Small Storage Unit Storage Small Storage Unit Weapon Light Assault Rifle Energy Gun Medium Laser Energy Cannon YOLO Cannon Ballistic Gun Light Assault Rifle Build | -11 -10 -10 -10 ------- Run | Yrd Mat Min Exi Slots Evolved . | . . . . Power . | . . . . Propulsion . | . . . . Utility . | . . . . Weapon . | . . . . Parts Attached 5 | . 1 1 3 Power . | . . . . Engine . | . . . . Core . | . . . . Reactor . | . . . . Propulsion 2 | . . . 2 Treads 2 | . . . 2 Leg . | . . . . Wheel . | . . . . Hover . | . . . . Flight . | . . . . Utility 1 | . 1 . . Device . | . . . . Storage 1 | . 1 . . Processor . | . . . . Hackware . | . . . . Protection . | . . . . Artifact . | . . . . Weapon 2 | . . 1 1 Energy Gun . | . . . . Energy Cannon 1 | . . . 1 Ballistic Gun 1 | . . 1 . Ballistic Cannon . | . . . . Launcher . | . . . . Special Weapon . | . . . . Impact Weapon . | . . . . Slashing Weapon . | . . . . Piercing Weapon . | . . . . Special Melee Weapon . | . . . . Unidentified Prototypes . | . . . . Parts Lost 4 | . . 1 3 Power 1 | . . . 1 Propulsion 1 | . . . 1 Utility . | . . . . Weapon 2 | . . 1 1 Highest Loss Streak 3 | . . 1 3 To Critical Strikes 2 | . . . 2 Average Backups 6 | 6 6 6 6 Power 1 | 1 1 1 1 Propulsion 4 | 4 4 4 4 Utility . | . . . 1 Weapon . | 1 1 . . Tool/Special . | . . . . Unused Backups 13 | 6 . 1 6 Power 3 | 1 . . 2 Propulsion 4 | 2 . . 2 Utility 2 | 1 . . 1 Weapon 4 | 2 . 1 1 Tool/Special . | . . . . Average Slot Usage (%) 97 | . 94 99 99 Engine 13 | . 14 14 13 Leg 27 | . 28 28 26 Storage 26 | . 23 28 28 Energy Gun 4 | . 14 5 . Ballistic Gun 22 | . 14 21 26 Peak Build Rating 25 | 6 7 7 25 Average Rating 8 | 6 6 6 9 On Entrance 6 | 6 6 7 7 Naked Turns 2 | . . . 2 Heaviest Build 68 | 13 53 53 68 Greatest Support 40 | 20 20 20 40 Greatest Overweight (x) 2 | . 2 2 2 Average Overweight (x) 1 | . 1 2 1 Largest Inventory Capacity 20 | 8 20 20 20 Average Capacity 18 | 8 15 20 19 Most Carried 8 | 6 6 7 8 Average Carried 6 | 6 6 6 7 Final Capacity 20 | 8 20 20 5 Final Carried 6 | 6 6 6 5 Class Distribution -------------------- 100% | Mutant Dominant Class ---------------- Mutant | -10/Materials Mutant | -10/Mines Mutant | -10/Exiles Resources | -11 -10 -10 -10 ----------- Run | Yrd Mat Min Exi Matter Collected 362 | 200 20 142 . Remotely . | . . . . Salvage Created 440 | . 192 185 63 Parts 22 | . 10 12 . Haulers Intercepted . | . . . . Recyclers Shooed . | . . . . Parts Field Recycled . | . . . . Retrieved Matter . | . . . . Parts Self-Destructed . | . . . . Prevented . | . . . . Kills | -11 -10 -10 -10 ------- Run | Yrd Mat Min Exi Combat Hostiles Destroyed 20 | . 5 8 7 Guns 13 | . 5 8 . Cannons 1 | . . . 1 AOE 6 | . . . 6 Classes Destroyed 4 | . 3 . 1 Watcher 1 | . 1 . . Swarmer 7 | . 1 6 . Grunt 6 | . 4 2 . Assembled 7 | . . . 7 Best Kill Streak 7 | . 3 3 7 Combat Bots Only 7 | . 3 3 7 Max Kills in Single Turn 7 | . 1 1 7 Gunslinging . | . . . . Exploded 6 | . . . 6 Melee . | . . . . Uniques/NPCs Destroyed . | . . . . Combat | -11 -10 -10 -10 -------- Run | Yrd Mat Min Exi Hostile Shots Fired 124 | . 23 50 51 Missed 30 | . 8 13 9 Hits 94 | . 15 37 42 Melee 5 | . . . 5 Projectile 89 | . 15 37 37 Critical Strikes 18 | . . . 18 Damage Taken 1296 | . 167 328 801 Core 258 | . 47 69 142 Absorbed by Shields . | . . . . Core Remaining (%) 100 | 100 . . . Volleys Fired 55 | . 15 31 9 Largest 2 | . 2 2 1 Hottest 100 | . 70 70 100 Shots Fired 99 | . 30 60 9 Gun 90 | . 30 60 . Cannon 9 | . . . 9 Launcher . | . . . . Special . | . . . . Kinetic 52 | . 15 37 . Thermal 47 | . 15 23 9 Explosive . | . . . . Electromagnetic . | . . . . Robot Hit Streak 7 | . 4 7 6 Robot Miss Streak 5 | . 2 5 2 Penetration Max . | . . . . Secondary Targets 2 | . 1 1 . Max Gunslinging Chain 1 | . 1 1 . Shots Hit Robots 51 | . 16 28 7 Core Hits 33 | . 15 12 6 Critical Kills 1 | . 1 . . Critical Parts Destroyed . | . . . . Critical Strikes 6 | . 1 5 . Burn 5 | . . 5 . Destroy 1 | . 1 . . Melee Attacks . | . . . . Impact . | . . . . Slashing . | . . . . Piercing . | . . . . Sneak Attacks . | . . . . Combat Hostiles . | . . . . Follow-up Attacks . | . . . . Damage Inflicted 1172 | . 217 307 648 Guns 486 | . 182 304 . Cannons 168 | . . . 168 Explosions 462 | . . . 462 Melee . | . . . . Ramming 56 | . 35 3 18 Kinetic 222 | . 57 165 . Thermal 894 | . 125 139 630 Explosive . | . . . . Electromagnetic . | . . . . Impact . | . . . . Slashing . | . . . . Piercing . | . . . . Highest Corruption . | . . . . Average Corruption . | . . . . Corruption Purged . | . . . . Corruption Blocked . | . . . . Overload Shots . | . . . . Overflow Damage 114 | . . . 114 Projectiles 55 | . . . 55 Explosions 59 | . . . 59 Melee . | . . . . Knockbacks . | . . . . Impact . | . . . . Kinetic . | . . . . Secondary . | . . . . Self-Inflicted Damage 75 | . . . 75 Shots 1 | . . . 1 Rammed 1 | . . . 1 Targets Rammed 16 | . 13 2 1 Kicked 15 | . 13 2 . Crushed . | . . . . Highest Temperature 183 | . 181 183 160 Average Temperature 80 | . 73 82 84 Received Heat Transfer 181 | . 78 63 40 Siege Activations . | . . . . Martial Activations . | . . . . Shielding Activations . | . . . . Robots Disrupted . | . . . . Combat Hostiles . | . . . . Robots Corrupted . | . . . . Combat Hostiles . | . . . . Parts Fried . | . . . . Impact Corruptions . | . . . . Robots Melted . | . . . . Combat Hostiles . | . . . . Parts Melted 2 | . 1 1 . Heat Transferred 1647 | . 370 777 500 Parts Sabotaged . | . . . . Parts Stolen . | . . . . Parts Stripped . | . . . . Power Chain Reactions . | . . . . Alert | -11 -10 -10 -10 ------- Run | Yrd Mat Min Exi Maximum Alert Level . | . . . . Low Security (%) 100 | 100 100 100 . Level 1 . | . . . . Level 2 . | . . . . Level 3 . | . . . . Level 4 . | . . . . Level 5 . | . . . . High Security . | . . . . Max Security . | . . . . Peak Influence 90 | . 90 85 . Initial . | . . . . Average 25 | . 20 35 . Influence Increases 357 | . 152 205 . Destroy 0b10 Robot/C 260 | . 100 160 . Destroy 0b10 Robot/NC 5 | . 5 . . Destroy Leader 62 | . 32 30 . Partial Spotted 15 | . 15 . . Lose Combat Pursuer 15 | . . 15 . Influence Decreases 357 | . 152 205 . Time Decay 347 | . 152 195 . Lost Part 10 | . . 10 . Squads Dispatched 1 | . 1 . . Investigation . | . . . . Extermination . | . . . . Reinforcement 1 | . 1 . . Assault . | . . . . Garrison . | . . . . Intercept . | . . . . Searches Triggered . | . . . . Construction Impeded . | . . . . Haulers Reinforced . | . . . . Active Scanning Responses . | . . . . Cargo Convoy Interrupts . | . . . . Stealth | -11 -10 -10 -10 --------- Run | Yrd Mat Min Exi Distress Signals 2 | . 2 . . Communications Jammed . | . . . . Distress Signals . | . . . . Times Spotted 24 | . 8 8 8 Peak Tracking Total 9 | . 4 3 9 Tactical Retreats 1 | . . 1 . Traps | -11 -10 -10 -10 ------- Run | Yrd Mat Min Exi Traps Triggered . | . . . . Indirectly . | . . . . Trap Hack Attempts . | . . . . Triggered . | . . . . Disarmed . | . . . . Reprogrammed . | . . . . Reused . | . . . . Traps Extracted . | . . . . Installed . | . . . . Triggered . | . . . . Machines | -11 -10 -10 -10 ---------- Run | Yrd Mat Min Exi Machines Disabled 2 | . . . 2 Max in Single Turn 2 | . . . 2 Machines Repaired . | . . . . Machines Dismantled . | . . . . Machines Sabotaged . | . . . . Overloaded Fab Kills . | . . . . Hacking | -11 -10 -10 -10 --------- Run | Yrd Mat Min Exi Machines Accessed 2 | . . 1 1 Terminals 1 | . . 1 . Fabricators . | . . . . Repair Stations . | . . . . Recycling Units . | . . . . Scanalyzers . | . . . . Garrison Access . | . . . . Total Hacks 3 | . . 2 1 Successful 1 | . . . 1 Failed 2 | . . 2 . Catastrophic . | . . . . Database Lockouts . | . . . . Manual 1 | . . . 1 Terminals 2 | . . 2 . Fabricators . | . . . . Repair Stations . | . . . . Recycling Units . | . . . . Scanalyzers . | . . . . Garrison Access . | . . . . Terminal Hacks 1 | . . . 1 Proto ID Catalog 1 | . . . 1 Fabricator Hacks . | . . . . Repair Station Hacks . | . . . . Recycling Unit Hacks . | . . . . Scanalyzer . | . . . . Garrison Access Hacks . | . . . . Unauthorized Hacks . | . . . . Terminals . | . . . . Fabricators . | . . . . Repair Stations . | . . . . Recycling Units . | . . . . Scanalyzers . | . . . . Garrison Access . | . . . . Data Cores Recovered . | . . . . Used . | . . . . Hacking Detections 1 | . . 1 . Full Trace Events . | . . . . Feedback Events . | . . . . Feedback Blocked . | . . . . Robot Schematics Acquired . | . . . . Robots Built . | . . . . Authchips . | . . . . Time . | . . . . Total Robot Build Rating . | . . . . Part Schematics Acquired . | . . . . Parts Built . | . . . . Authchips . | . . . . Time . | . . . . Total Part Build Rating . | . . . . Parts Repaired . | . . . . Time . | . . . . Parts Recycled . | . . . . Recycled Matter . | . . . . Retrieved Matter . | . . . . Retrieved Components . | . . . . Parts Scanalyzed . | . . . . Part Schematics Acquired . | . . . . Parts Damaged . | . . . . Bothacking | -11 -10 -10 -10 ------------ Run | Yrd Mat Min Exi Used RIF Installer . | . . . . Robots Hacked . | . . . . Non-combat . | . . . . Combat . | . . . . Robot Hacks Applied . | . . . . Relay Couplers Released . | . . . . Fabnet Peak Effective % . | . . . . Robots Rewired . | . . . . Allies Hacked . | . . . . Hacks Repelled . | . . . . Allies | -11 -10 -10 -10 -------- Run | Yrd Mat Min Exi Total Allies . | . . . . Largest Group . | . . . . Highest-Rated Group . | . . . . Highest-Rated Ally . | . . . . Total Orders . | . . . . Ally Attacks . | . . . . Total Damage . | . . . . Kills . | . . . . Allies Corrupted . | . . . . Allies Melted . | . . . . Intel | -11 -10 -10 -10 ------- Run | Yrd Mat Min Exi Active Infowar (turns) . | . . . . Robot Analysis Total . | . . . . Derelict Logs Recovered . | . . . . Drone Launches . | . . . . Drone Recoveries . | . . . . Exploration | -11 -10 -10 -10 ------------- Run | Yrd Mat Min Exi Turns Passed 2357 | 45 643 423 1246 Spaces Moved 923 | 38 296 128 461 Core 3 | . . . 3 Treads 1 | . . . 1 Legs 919 | 38 296 128 457 Wheels . | . . . . Hover . | . . . . Flight . | . . . . Fastest Speed 50 | 120 120 260 50 Average Speed 232 | 120 193 260 258 Slowest Speed 260 | 120 260 260 260 Overloaded Moves . | . . . . Propulsion Burnouts . | . . . . Robots Hopped . | . . . . Potential Cave-ins . | . . . . Cave-ins Triggered . | . . . . Exploration Rate (%) 45 | 3 56 34 87 Regions Visited 3 Branch Regions 2 Pre-discovered Areas . | . . . . Known Exits Taken . | . . . . Unknown Exits Taken 3 | 1 1 1 . Scrap Searched 1 | . . 1 . Spaces Dug . | . . . . Terrain Destroyed 67 | . . . 67 Melee . | . . . . Projectile 2 | . . . 2 AOE 65 | . . . 65 Terrain Rammed . | . . . . Walls Destroyed . | . . . . Machines Disabled . | . . . . Actions | -11 -10 -10 -10 --------- Run | Yrd Mat Min Exi Total 1011 | 37 324 162 488 Wait 11 | . . . 11 Move 920 | 37 295 127 461 Hop . | . . . . Pick Up 2 | . . 1 1 Fast Attach 1 | . 1 . . Attach 2 | . . 1 1 Detach . | . . . . Swap 2 | . . . 2 Drop 2 | . . . 2 Fire 55 | . 15 31 9 Melee . | . . . . Ram 1 | . . . 1 Kick 15 | . 13 2 . Crush . | . . . . Escape Stasis . | . . . . Rewire . | . . . . Trap . | . . . . Miscellaneous . | . . . . Route ------- -11/Scrapyard -10/Materials (discovered 4 exits: [*Mat x2] / *Min / [*Sub]) -10/Mines -10/Exiles History --------- Turn | Location | Event 1 | -11/Scrapyard | Discovered new exit (range 2) 46 | -11/Scrapyard | Entered Materials 186 | -10/Materials | Discovered new exit (range 13) 250 | -10/Materials | Discovered new exit (range 5) 263 | -10/Materials | Discovered new exit (range 15) 301 | -10/Materials | Build established: Mutant 486 | -10/Materials | Discovered new exit (range 16) 689 | -10/Materials | Entered Mines 1099 | -10/Mines | Deemed a non-threat by the Exiles lab entrance 1101 | -10/Mines | Discovered new exit (range 5) 1112 | -10/Mines | Entered Exiles 1183 | -10/Exiles | Met 8R-AWN 1219 | -10/Exiles | Met EX-HEX 1305 | -10/Exiles | Met EX-BIN 1354 | -10/Exiles | Aligned with FarCom system 1357 | -10/Exiles | Given EX-Vault access code 1422 | -10/Exiles | Opened EX-Vault 1437 | -10/Exiles | Found YOLO Cannon 1490 | -10/Exiles | Warned to stay clear of 0b10 Research branches 1568 | -10/Exiles | Met EX-DEC 1840 | -10/Exiles | Visited The Gauntlet 2310 | -10/Exiles | Attacked by the Exiles 2319 | -10/Exiles | Core integrity fell below 50% 2330 | -10/Exiles | Core integrity fell below 20% 2346 | -10/Exiles | Destroyed 7 combat bots 2356 | -10/Exiles | Released all parts (3) 2358 | -10/Exiles | Destroyed by 8R-AWN with 8R-AWN's Boregun Last Messages --------------- 02349_ Penetrated by HV Slug. 02349_ Critical hit (Destroy). 02349_ Ion Engine destroyed. 02349_ HV Slug penetrates Earth. 02349_ Penetrated by HV Slug. 02349_ HV Slug penetrates Earth. 02351_ HV Slug penetrates Machine. 02351_ HV Slug penetrates Wall. 02351_ Penetrated by HV Slug. 02351_ HV Slug penetrates Earth. 02354_ Penetrated by HV Slug. 02356_ HV Slug penetrates Earth. 02356_ Penetrated by HV Slug. 02356_ Critical hit (Destroy). 02356_ YOLO Cannon destroyed. 02356_ Released Hcp. Storage Unit. 02356_ Released Sml. Storage Unit. 02356_ Released Lgt. Treads. 02358_ Slammed into 8R-AWN. 02358_ Penetrated by HV Slug. Map ----- +----------------------------------------------------+ | """#?????????????????????????????????????????????? | | """#?????????????????????????????????????????????? | | """#?????????????????????????????????????????????? | | """#?????????????????????????????????????????????? | | """#?????????????????????????????????????????????? | | """#?????????????????????????????????????????????? | | """#?????????????????????????????????????????????? | | """"?????????????????????????????????????????????? | | """#?????????????????????????????????????????????? | | """"?????????????????????????????????????????????? | | ??????????????????????????????????????????????? | | """#?????????????????????????????????????????????? | | ####?????????????????????????????????????????????? | | ?????????????????????????????????????????????????? | | ??????????????????????????####???????????????????? | | ?????????????????????????# ##??????????????????? | | ##########?????????????## ##?????????????????? | | """""""""##????????????# #?????????????? ??? | | " """ """"##???????????# #?????????????# ? | | "" " #??????????## #???????????## # | | " """#?????????## #???????????# | | " "#?????????# #???????????# | | " "##????????# #??????????## | | ""###??????# #?????????## #? | | """#??????# g #??????????# #? | | "#????### @ ##????????### #?? | | ##???# ########## #?? | | ##?## #""""## #??? | | ### %!!= * ##?? | | % ;* * #?? | | %;; ; ##? | | " ##; "#### ## | | #"" ;##;#;;;##??#### * | | ######?# # ###??????##### | | ##??????# ###????????????### | | " ##???????# #????????????????### | | """ ""#????????# #??????????????????### | | ""#" "##????????? ????????????????????#" | | """##"""""""##?????????? ????????????????????#### | | """###########??????????? ???????????????????????# | | ####????????????????????? ???????????????????????# | | ????????????????????????? ???????????????????????? | | ????????????????????????? ???????????????????????? | | ????????????????????????? ???????????????????????? | | ?????????????????????????????????????????????????? | | ?????????????????????????????????????????????????? | | ?????????????????????????????????????????????????? | | ?????????????????????????????????????????????????? | | ?????????????????????????????????????????????????? | | ?????????????????????????????????????????????????? | +----------------------------------------------------+ Best States ------------- Heat Dissipation 25 Energy Generation 10 Energy Capacity 250 Matter Stores 300 Matter Capacity 300 Sight Range 16 Terrain Scan Density 10 Evasion (%) 55 Recoil Reduction 2 Item Schematics ----------------- None Robot Schematics ------------------ None Fabricated ------------ Nothing Repaired ---------- Nothing Alien Tech Used ----------------- None Achievements -------------- None Challenges ------------ None Game ------ Seed ShrapnelMetaSplitter Manual? 0 Play Time 00:08:24 Cumulative 468.4 hours Start 2025.06.23 @ 17:07:25 End 2025.06.23 @ 17:13:24 Sessions 1 Manual Loads 0 Difficulty Rogue Special Mode None Game No. 213 Rogue 213 Adventurer 0 Explorer 0 Win Type - Total 20 Types 6/3/6/2/1/0/1/0/0/1 Lore% 88 Gallery% 84 Achievement% 78 Wizard Run 0 Options --------- Layout 0 ASCII 0 Keyboard 0 Movement Arrows Keybinds 0 Fullscreen 2 Font 18/SmallcapsGlow Map View 76x50 Zoom Use 0% Tactical HUD 1 Map Filters NONE Filters NONE Steam 1 RUN: 36173843-f6b5-4979-aa70-6f12ca8648a2